bitfinex/quotes_SOLUSD_20250417
["timestamp","ask_amount","ask_price","bid_price","bid_amount"]
[1744887961201,13.81407042,133.54,133.49,7.49075916]
[1744887961516,41.14569888,133.56,133.49,7.49075916]
[1744887961517,13.81407042,133.55,133.49,7.49075916]
[1744887961715,13.81407042,133.55,133.51,13.81407042]
[1744887962221,7.48839299,133.54,133.5,13.81407042]
[1744887962424,7.48806702,133.55,133.51,13.81407042]
[1744887962591,36.24154827,133.56,133.51,13.81407042]
[1744887962793,41.14565694,133.56,133.49,13.81407042]
[1744887963120,1.5636,133.52,133.49,13.81407042]
[1744887963302,1.5636,133.52,133.48,13.81407042]
[1744887963909,15.37767042,133.52,133.48,13.81407042]
[1744887964405,7.49007564,133.51,133.47,39.81407042]
[1744887965533,21.30414606,133.51,133.47,39.81407042]
[1744887965924,36.32414606,133.51,133.47,39.81407042]
[1744887966236,36.32414606,133.51,133.47,26.0]
[1744887967417,36.32414606,133.51,133.46,13.81407042]
[1744887967718,13.81407042,133.49,133.45,0.063]
[1744887968106,13.81407042,133.49,133.45,13.87707042]
[1744887969724,21.30579558,133.49,133.45,13.87707042]
[1744887970021,7.49172516,133.49,133.45,13.87707042]
[1744887970923,21.30579558,133.49,133.45,13.87707042]
[1744887974429,21.30579558,133.49,133.45,0.063]
[1744887976635,7.49172516,133.49,133.45,13.87707042]
[1744887976942,105.3103398,133.51,133.47,13.81407042]
[1744887977238,105.3103398,133.51,133.48,13.81407042]
[1744887977421,105.3103398,133.51,133.47,13.81407042]
[1744887977623,36.32441022,133.51,133.47,13.81407042]
[1744887978222,36.32441022,133.51,133.46,13.81407042]
[1744887978428,36.32441022,133.51,133.46,39.81407042]
[1744887979745,13.81407042,133.49,133.45,13.87707042]
[1744887980123,13.81407042,133.49,133.45,0.063]
[1744887980524,21.30582948,133.48,133.45,0.063]
[1744887981045,13.81407042,133.47,133.45,0.063]
[1744887982524,7.49288176,133.46,133.45,0.063]
[1744887983444,21.30695218,133.46,133.45,0.063]
[1744887983644,37.86655218,133.46,133.45,0.063]
[1744887984943,56.51620104,133.46,133.45,0.063]
[1744887985123,37.86655218,133.46,133.45,0.063]
[1744887989261,32.9071751,133.46,133.45,0.063]
[1744887993658,16.5596,133.46,133.45,0.063]
[1744887994744,14.94,133.46,133.45,0.063]
[1744888003272,8.85469334,133.48,133.45,0.063]
[1744888003439,84.3875,133.5,133.46,8.85469334]
[1744888003440,1.5875,133.5,133.46,8.85469334]
[1744888003759,14.94,133.51,133.47,8.85469334]
[1744888005664,23.79469334,133.51,133.48,7.49175906]
[1744888005866,8.85469334,133.51,133.48,7.49175906]
[1744888006363,8.85469334,133.51,133.47,16.34676039]
[1744888009763,8.85469334,133.51,133.47,7.49206705]
[1744888009972,8.85469334,133.48,133.45,0.063]
[1744888010268,8.85469334,133.46,133.45,0.063]
[1744888011266,16.3475751,133.46,133.45,0.063]
[1744888011470,8.85469334,133.46,133.45,0.063]
[1744888013164,113.98729139,133.47,133.45,0.063]
[1744888014174,8.85469334,133.46,133.45,0.063]
[1744888015073,113.98729139,133.47,133.45,0.063]
[1744888017770,8.85469334,133.46,133.45,0.063]
[1744888018750,106.49469334,133.47,133.45,0.063]
[1744888018949,97.64,133.47,133.45,0.063]
[1744888021769,14.84,133.47,133.45,0.063]
[1744888023981,14.84,133.47,133.46,8.85469334]
[1744888024293,91.65469334,133.5,133.45,8.91769334]
[1744888025277,8.85469334,133.48,133.45,0.063]
[1744888025464,8.85469334,133.47,133.45,0.063]
[1744888026281,16.34661434,133.48,133.45,0.063]
[1744888026881,31.18661434,133.48,133.45,0.063]
[1744888027986,8.85469334,133.47,133.45,0.063]
[1744888030074,16.34705538,133.47,133.45,0.063]
[1744888033074,31.1865515,133.48,133.45,0.063]
[1744888034309,14.84,133.48,133.45,0.063]
[1744888034699,14.84,133.48,133.45,7.55644323]
[1744888035501,14.84,133.48,133.45,16.41113657]
[1744888035701,1.5222,133.51,133.47,8.85469334]
[1744888036404,9.01231763,133.51,133.47,8.85469334]
[1744888036603,1.5222,133.51,133.47,8.85469334]
[1744888036919,1.5222,133.51,133.47,16.34695367]
[1744888037412,9.01235883,133.51,133.47,16.34695367]
[1744888037611,1.5222,133.51,133.47,16.34695367]
[1744888038605,9.01238141,133.51,133.47,16.34695367]
[1744888039004,17.86707475,133.51,133.46,16.34729768]
[1744888039211,8.85469334,133.49,133.45,7.55624178]
[1744888041399,14.84,133.52,133.48,8.85469334]
[1744888041599,14.84,133.52,133.5,8.85469334]
[1744888041790,14.84,133.52,133.49,8.85469334]
[1744888042726,8.85469334,133.5,133.46,26.0]
[1744888043222,16.34487117,133.51,133.46,42.34705074]
[1744888043517,8.85469334,133.51,133.46,42.34705074]
[1744888043725,8.85469334,133.51,133.47,8.85469334]
[1744888044212,16.34477122,133.51,133.47,8.85469334]
[1744888044402,7.49007788,133.51,133.47,8.85469334]
[1744888044609,16.34477122,133.51,133.46,42.34705074]
[1744888045333,31.18449005,133.52,133.47,16.34663095]
[1744888049335,16.34484905,133.51,133.47,7.49193761]
[1744888050323,7.49015571,133.51,133.47,16.34663095]
[1744888051432,16.34484905,133.51,133.47,7.49193761]
[1744888052428,16.34484905,133.51,133.46,42.34745324]
[1744888054308,99.14484905,133.51,133.46,42.34745324]
[1744888055324,99.14484905,133.51,133.46,33.4927599]
[1744888055519,93.18679334,133.5,133.45,8.91769334]
[1744888055723,8.85469334,133.49,133.45,0.063]
[1744888056028,8.85469334,133.49,133.45,8.91769334]
[1744888056940,100.67786098,133.5,133.46,8.85469334]
[1744888058707,91.82316764,133.5,133.46,16.34742221]
[1744888059108,84.3321,133.5,133.47,8.85469334]
[1744888059710,84.3321,133.5,133.46,16.34742221]
[1744888060029,1.5321,133.5,133.46,16.34742221]
[1744888063212,9.02281328,133.5,133.46,16.34742221]
[1744888063412,1.5321,133.5,133.46,16.34742221]
[1744888064308,1.5321,133.5,133.47,8.85469334]
[1744888064933,1.5321,133.5,133.48,8.85469334]
[1744888065141,105.12976659,133.52,133.48,8.85469334]
[1744888065321,14.84,133.52,133.48,8.85469334]
[1744888065639,14.84,133.52,133.51,8.85469334]
[1744888065827,14.84,133.52,133.49,8.85469334]
[1744888066026,14.84,133.52,133.47,26.0]
[1744888066332,14.84,133.52,133.48,8.85469334]
[1744888066701,22.3296894,133.52,133.48,16.34628489]
[1744888067428,8.85469334,133.51,133.47,8.85469334]
[1744888068536,16.34526273,133.51,133.47,8.85469334]
[1744888069217,16.34526273,133.51,133.46,8.85469334]
[1744888069417,8.85469334,133.5,133.45,42.41083995]
[1744888070541,7.49119784,133.49,133.45,42.41083995]
[1744888070731,7.49119784,133.49,133.46,8.85469334]
[1744888071943,7.4906367,133.5,133.46,8.85469334]
[1744888074723,22.3306367,133.5,133.46,8.85469334]
[1744888075647,22.3306367,133.5,133.47,8.85469334]
[1744888075849,22.3306367,133.5,133.46,16.34741199]
[1744888077442,22.3306367,133.5,133.47,8.85469334]
[1744888079145,22.3306367,133.5,133.46,8.85469334]
[1744888080649,31.18533004,133.5,133.46,8.85469334]
[1744888081254,10.42589334,133.49,133.45,0.063]
[1744888081546,8.85469334,133.47,133.45,0.063]
[1744888082451,7.49288176,133.46,133.45,0.063]
[1744888082653,6.5344751,133.29,133.2,0.063]
[1744888082858,8.85469334,133.29,133.22,8.85469334]
[1744888083027,0.28432314,133.32,133.26,100.65870228]
[1744888083357,6.3763,133.35,133.3,8.85469334]
[1744888083644,6.372,133.41,133.29,0.28432314]
[1744888083858,8.85469334,133.38,133.32,8.85469334]
[1744888084030,8.85469334,133.37,133.31,8.85469334]
[1744888084223,8.85469334,133.35,133.3,8.85469334]
[1744888084453,7.49962501,133.34,133.3,8.85469334]
[1744888084662,5.5716281,133.33,133.3,8.85469334]
[1744888085227,13.8677201,133.41,133.33,0.28432314]
[1744888085433,8.85469334,133.38,133.34,17.04]
[1744888085854,8.85469334,133.37,133.32,8.85469334]
[1744888086022,8.85469334,133.35,133.3,17.04]
[1744888086225,8.85469334,133.34,133.29,8.85469334]
[1744888086424,8.85469334,133.32,133.28,0.063]
[1744888086623,16.35600606,133.31,133.28,0.063]
[1744888087144,7.50090511,133.32,133.28,8.91769334]
[1744888087333,8.85469334,133.35,133.3,8.85469334]
[1744888087532,16.3543085,133.35,133.3,8.85469334]
[1744888087732,8.85469334,133.34,133.29,8.85469334]
[1744888088129,8.85469334,133.33,133.28,8.91769334]
[1744888088533,7.50075007,133.32,133.28,8.91769334]
[1744888089750,7.50024937,133.33,133.3,8.85469334]
[1744888090341,7.50024937,133.33,133.29,8.85469334]
[1744888092070,7.49955398,133.35,133.32,8.85469334]
[1744888092851,7.49955398,133.35,133.31,8.85469334]
[1744888093656,16.35424732,133.35,133.31,8.85469334]
[1744888095055,8.85469334,133.34,133.3,8.85469334]
[1744888095355,8.85469334,133.34,133.29,34.85469334]
[1744888096166,8.85469334,133.33,133.29,26.0]
[1744888096347,16.35537265,133.33,133.28,8.91769334]
[1744888096649,7.50067931,133.33,133.28,0.063]
[1744888096860,16.35537265,133.33,133.28,8.91769334]
[1744888097055,7.50067931,133.33,133.29,8.85469334]
[1744888098065,7.49984295,133.34,133.29,8.85469334]
[1744888098241,16.35453629,133.34,133.3,8.85469334]
[1744888099045,16.35453629,133.34,133.29,16.35700327]
[1744888101460,8.85469334,133.32,133.28,34.91769334]
[1744888101662,8.85469334,133.31,133.28,26.063]
[1744888102041,8.85469334,133.33,133.29,8.85469334]
[1744888103372,16.35535268,133.33,133.29,8.85469334]
[1744888103545,8.85469334,133.32,133.28,34.91769334]
[1744888103751,8.85469334,133.3,133.28,0.063]
[1744888104539,115.6450281,133.33,133.28,0.063]
[1744888104540,8.85469334,133.31,133.28,0.063]
[1744888105265,16.35616841,133.31,133.28,0.063]
[1744888111481,16.35566557,133.32,133.28,8.91769334]
[1744888111685,98.24859334,133.33,133.28,8.91769334]
[1744888111876,8.85469334,133.32,133.28,8.91769334]
[1744888112079,8.85469334,133.31,133.28,0.063]
[1744888113002,8.85469334,133.32,133.28,8.91769334]
[1744888114183,16.35547083,133.32,133.28,8.91769334]
[1744888115287,16.35547083,133.32,133.28,16.42059506]
[1744888115614,8.85469334,133.32,133.28,16.42059506]
[1744888116193,98.24859334,133.33,133.29,8.85469334]
[1744888116381,89.3939,133.33,133.29,8.85469334]
[1744888116690,16.3540323,133.35,133.3,8.85469334]
[1744888117484,8.85469334,133.34,133.3,8.85469334]
[1744888119100,16.3540323,133.35,133.3,16.35614715]
[1744888120502,5.54754024,133.34,133.3,16.35614715]
[1744888121602,16.3540323,133.35,133.3,16.35614715]
[1744888122499,16.35456502,133.34,133.3,7.50145381]
[1744888123089,8.85469334,133.33,133.29,8.85469334]
[1744888123294,8.85469334,133.33,133.29,16.35703678]
[1744888124002,16.35456502,133.34,133.29,16.35703678]
[1744888124298,16.35456502,133.34,133.3,8.85469334]
[1744888124701,16.35456502,133.34,133.3,16.35624541]
[1744888125179,5.58057075,133.33,133.3,16.35624541]
[1744888125382,5.58057075,133.33,133.3,8.85469334]
[1744888125583,5.58057075,133.33,133.29,8.85469334]
[1744888125788,14.43526409,133.33,133.29,8.85469334]
[1744888126112,5.58057075,133.33,133.3,8.85469334]
[1744888126696,5.58057075,133.32,133.3,8.85469334]
[1744888126884,5.58057075,133.32,133.29,16.35712593]
[1744888127307,5.58057075,133.31,133.29,16.35712593]
[1744888128809,16.35456502,133.34,133.29,16.35712593]
[1744888129311,2.80294209,133.33,133.29,16.35712593]
[1744888129811,5.60588255,133.32,133.29,16.35712593]
[1744888130003,5.60588255,133.32,133.28,33.38040587]
[1744888130197,14.46057589,133.32,133.28,33.38040587]
[1744888130603,14.46057589,133.32,133.28,17.023]
[1744888130604,21.96134237,133.32,133.28,17.023]
[1744888131009,5.60588255,133.31,133.28,17.023]
[1744888131189,2.80458769,133.3,133.28,17.023]
[1744888131805,8.41047024,133.29,133.28,17.023]
[1744888132317,8.41047024,133.29,133.28,33.38069454]
[1744888132623,8.41047024,133.29,133.28,25.87769334]
[1744888133414,8.41047024,133.29,133.28,33.38069454]
[1744888133718,8.41047024,133.29,133.28,24.5260012]
[1744888133903,8.41047024,133.29,133.28,17.023]
[1744888140106,8.41047024,133.29,133.28,24.5260012]
[1744888140502,8.41047024,133.29,133.28,7.5660012]
[1744888141697,8.41047024,133.29,133.28,0.063]
[1744888145027,2.80458769,133.29,133.28,0.063]
[1744888145225,99.15574609,133.32,133.28,0.063]
[1744888146103,13.10869319,133.31,133.28,0.063]
[1744888146305,15.91223743,133.31,133.28,0.063]
[1744888146935,5.60708845,133.3,133.28,0.063]
[1744888147917,5.60708845,133.29,133.28,0.063]
[1744888148118,8.41085042,133.29,133.28,0.063]
[1744888149945,5.60708845,133.29,133.28,0.063]
[1744888151911,8.41093686,133.29,133.28,0.063]
[1744888154540,114.04996849,133.29,133.28,0.063]
[1744888158143,105.19527515,133.29,133.28,0.063]
[1744888158322,8.41093686,133.29,133.28,0.063]
[1744888158724,5.60708845,133.29,133.28,0.063]
[1744888159051,16.3563777,133.31,133.28,0.063]
[1744888160023,8.85469334,133.29,133.28,0.063]
[1744888160218,16.35713163,133.29,133.28,0.063]
[1744888160530,19.15903391,133.29,133.28,0.063]
[1744888160837,44.18918277,133.29,133.28,0.063]
[1744888161043,44.18918277,133.29,133.26,0.063]
[1744888161044,18.64964886,133.28,133.26,0.063]
[1744888161352,113.10624448,133.27,133.26,1e-08]
[1744888161519,118.70958502,133.27,133.26,1e-08]
[1744888162348,126.21314921,133.27,133.26,1e-08]
[1744888165643,43.41314921,133.27,133.26,1e-08]
[1744888166047,43.41314921,133.27,133.23,0.063]
[1744888166048,107.91194886,133.26,133.23,0.063]
[1744888166250,27.5043422,133.24,133.23,0.063]
[1744888166435,37.81149815,133.24,133.23,0.063]
[1744888167158,45.32746183,133.24,133.22,0.063]
[1744888167324,8.85469334,133.23,133.22,0.063]
[1744888167733,8.85469334,133.23,133.21,0.063]
[1744888167734,25.25164886,133.22,133.21,0.063]
[1744888168051,75.1284561,133.22,133.21,0.063]
[1744888168252,77.93035838,133.22,133.21,0.063]
[1744888168454,85.4367388,133.22,133.21,0.063]
[1744888169151,128.10106194,133.22,133.19,0.063]
[1744888169354,44.2734667,133.21,133.19,0.063]
[1744888169538,27.5043422,133.21,133.19,0.063]
[1744888169941,30.30624448,133.21,133.19,0.063]
[1744888170248,17.25993616,133.21,133.19,0.063]
[1744888171160,24.76688008,133.21,133.19,0.063]
[1744888171357,21.9649778,133.21,133.19,0.063]
[1744888171544,76.03340002,133.21,133.19,0.063]
[1744888172975,78.81852427,133.21,133.19,0.063]
[1744888174658,76.03340002,133.21,133.19,0.063]
[1744888177863,70.43005948,133.21,133.19,0.063]
[1744888179744,44.933972,133.2,133.19,1e-08]
[1744888179954,20.19494886,133.19,133.17,0.063]
[1744888180157,18.64964886,133.16,133.15,0.063]
[1744888180366,27.5043422,133.16,133.15,0.063]
[1744888181065,8.85469334,133.16,133.15,0.063]
[1744888182060,16.36445603,133.16,133.15,0.063]
[1744888182567,7.50976269,133.16,133.15,0.063]
[1744888183348,16.36445603,133.16,133.15,0.063]
[1744888190283,35.01410489,133.16,133.15,0.063]
[1744888193080,41.32190489,133.16,133.15,0.063]
[1744888193284,41.60622803,133.16,133.15,0.063]
[1744888194184,41.32190489,133.16,133.15,0.063]
[1744888196788,46.88049281,133.16,133.15,0.063]
[1744888198884,47.16481595,133.16,133.15,1e-08]
[1744888199061,47.16481595,133.16,133.09,0.063]
[1744888199062,1.6326,133.14,133.09,0.063]
[1744888199264,8.85469334,133.1,133.09,0.063]
[1744888199585,16.36784134,133.1,133.09,0.063]
[1744888201874,20.41011836,133.14,133.09,0.063]
[1744888202059,8.85469334,133.12,133.09,0.063]
[1744888202889,16.36686311,133.12,133.09,0.063]
[1744888203085,8.85469334,133.12,133.09,0.063]
[1744888203391,16.36676438,133.12,133.09,0.063]
[1744888204984,8.85469334,133.11,133.09,0.063]
[1744888205491,16.36752668,133.11,133.09,0.063]
[1744888205670,8.85469334,133.1,133.09,0.063]
[1744888207077,27.5043422,133.1,133.09,0.063]
[1744888207288,40.60413056,133.1,133.09,0.063]
[1744888207990,49.94395989,133.1,133.09,0.063]
[1744888208175,65.92828303,133.1,133.09,1e-08]
[1744888209491,0.28432314,133.08,133.06,0.063]
[1744888209699,8.85469334,133.07,133.06,0.063]
[1744888209868,11.64782267,133.07,133.06,0.063]
[1744888210071,66.00056803,133.07,133.06,1e-08]
[1744888210292,66.00056803,133.07,133.03,0.063]
[1744888210492,8.85469334,133.04,133.03,0.063]
[1744888210871,27.5043422,133.04,133.03,0.063]
[1744888211266,35.02087858,133.04,133.03,0.063]
[1744888211782,49.9404258,133.04,133.03,0.063]
[1744888212094,50.22474894,133.04,133.03,0.063]
[1744888212805,50.22474894,133.04,133.01,0.063]
[1744888213106,27.78866534,133.02,133.01,0.063]
[1744888213403,40.38665933,133.02,133.01,0.063]
[1744888213580,69.17516619,133.02,133.01,0.063]
[1744888214483,74.76180655,133.02,133.01,0.063]
[1744888215796,74.47748341,133.02,133.01,0.063]
[1744888216299,55.82783455,133.02,133.01,0.063]
[1744888216483,53.03932769,133.02,133.01,0.063]
[1744888216678,5.58664036,133.02,133.01,0.063]
[1744888216885,19.52166118,133.02,133.01,0.063]
[1744888217200,27.03932769,133.02,133.01,0.063]
[1744888217799,40.10233619,133.02,133.01,0.063]
[1744888218303,40.38665933,133.02,133.01,0.063]
[1744888218497,18.933972,133.01,132.95,0.063]
[1744888218686,13.93502082,132.97,132.95,0.063]
[1744888218999,13.93502082,132.98,132.95,0.063]
[1744888219184,96.73502082,133.0,132.95,21.51957484]
[1744888219387,82.8,132.99,132.95,21.51957484]
[1744888219591,96.73502082,132.99,132.95,0.063]
[1744888219800,13.93502082,132.98,132.95,0.063]
[1744888219978,7.52049334,132.97,132.95,0.063]
[1744888220302,13.93502082,132.96,132.95,0.063]
[1744888221194,82.8,132.97,132.95,13.99802082]
[1744888221506,82.8,132.97,132.96,13.93502082]
[1744888221684,82.8,133.01,132.96,15.57472082]
[1744888221877,82.8,133.01,132.98,13.93502082]
[1744888222072,82.8,133.01,132.98,21.45480008]
[1744888223501,82.8,133.01,132.97,7.5202553]
[1744888223805,104.25338415,133.01,132.97,21.45527612]
[1744888224478,104.25338415,133.01,132.97,7.5202553]
[1744888224679,13.93502082,133.0,132.96,23.0954997]
[1744888224971,96.73502082,132.99,132.95,7.58441249]
[1744888225605,96.73502082,132.99,132.95,0.063]
[1744888225809,82.8,132.99,132.95,0.063]
[1744888225999,96.73502082,132.99,132.95,0.063]
[1744888226810,104.25460375,132.99,132.95,0.063]
[1744888227012,13.93502082,132.98,132.95,0.063]
[1744888227314,96.73502082,132.98,132.95,0.063]
[1744888229008,82.8,132.98,132.95,13.99802082]
[1744888229311,18.64964886,133.01,132.95,13.99802082]
[1744888229312,82.8,133.01,132.97,13.93502082]
[1744888229903,104.2533087,133.01,132.97,13.93502082]
[1744888230106,104.2533087,133.01,132.96,13.93502082]
[1744888230310,96.73502082,133.01,132.97,13.93502082]
[1744888231002,96.73502082,133.01,132.97,21.45507558]
[1744888231207,82.8,133.01,132.97,21.45507558]
[1744888231393,82.8,133.01,132.98,13.93502082]
[1744888232018,82.8,133.01,132.95,44.86596217]
[1744888232019,82.8,133.01,132.96,7.52056793]
[1744888232194,96.73502082,133.01,132.96,21.45558875]
[1744888232914,13.93502082,133.0,132.95,47.51939473]
[1744888233125,21.45396446,133.0,132.95,47.51939473]
[1744888234506,13.93502082,132.98,132.95,0.063]
[1744888234808,82.8,132.97,132.95,0.063]
[1744888236226,13.93502082,132.96,132.95,0.063]
[1744888236391,21.45607978,132.96,132.95,0.063]
[1744888241121,40.10572864,132.96,132.95,0.063]
[1744888242604,7.52219046,132.94,132.91,0.063]
[1744888242924,13.93502082,132.92,132.91,0.063]
[1744888243711,21.45834311,132.92,132.91,0.063]
[1744888244727,46.35279197,132.92,132.91,0.063]
[1744888246241,32.58466968,132.9,132.89,0.063]
[1744888247929,13.93502082,132.91,132.89,0.063]
[1744888249216,13.76843746,132.92,132.89,0.063]
[1744888249401,13.93502082,132.92,132.89,0.063]
[1744888250528,21.45835864,132.92,132.89,0.063]
[1744888251412,15.6,132.94,132.89,0.063]
[1744888251413,21.45804019,132.93,132.89,0.063]
[1744888252237,119.85748967,132.94,132.89,0.063]
[1744888252523,119.85748967,132.94,132.91,13.93502082]
[1744888252524,7.52246885,132.94,132.91,13.93502082]
[1744888252731,7.52162467,132.95,132.91,13.93502082]
[1744888252930,5.58807931,132.94,132.91,13.93502082]
[1744888253110,5.58807931,132.94,132.9,13.93502082]
[1744888254314,21.45664549,132.95,132.9,13.93502082]
[1744888254540,40.26070716,132.95,132.9,13.93502082]
[1744888254725,7.52162467,132.95,132.91,13.93502082]
[1744888256729,90.32162467,132.95,132.91,13.93502082]
[1744888258409,104.25664549,132.95,132.91,13.93502082]
[1744888258609,104.25664549,132.95,132.9,21.4593022]
[1744888258915,104.25664549,132.95,132.89,0.063]
[1744888258916,13.93502082,132.94,132.89,21.52287503]
[1744888260034,21.45751987,132.94,132.9,13.93502082]
[1744888260234,21.45751987,132.94,132.9,21.45947078]
[1744888261443,21.45751987,132.94,132.9,13.93502082]
[1744888262441,104.25751987,132.94,132.9,13.93502082]
[1744888263239,96.73502082,132.93,132.89,0.063]
[1744888263820,13.93502082,132.92,132.89,0.063]
[1744888264235,96.73502082,132.93,132.89,0.063]
[1744888264737,7.52332229,132.92,132.89,0.063]
[1744888264917,15.91266484,132.92,132.89,0.063]
[1744888265549,29.84768566,132.92,132.89,0.063]
[1744888265840,21.45834311,132.92,132.89,0.063]
[1744888267051,96.73502082,132.91,132.89,0.063]
[1744888267237,96.73502082,132.9,132.89,0.063]
[1744888267444,34.21786968,132.9,132.89,0.063]
[1744888268022,42.60567078,132.9,132.89,0.063]
[1744888268429,10.0210011,132.9,132.89,0.063]
[1744888268632,23.95602192,132.9,132.89,0.063]
[1744888268937,50.13012525,132.9,132.89,0.063]
[1744888270449,26.0,132.87,132.81,0.063]
[1744888270643,13.93502082,132.85,132.81,0.063]
[1744888271449,13.93502082,132.85,132.81,13.99802082]
[1744888272151,96.73502082,132.84,132.81,0.063]
[1744888272329,13.93502082,132.83,132.81,0.063]
[1744888272723,82.8,132.84,132.81,0.063]
[1744888272929,82.8,132.84,132.81,13.99802082]
[1744888273133,96.73502082,132.84,132.81,0.063]
[1744888274131,7.52841978,132.83,132.81,0.063]
[1744888274326,82.8,132.84,132.81,13.99802082]
[1744888274556,82.8,132.84,132.81,0.063]
[1744888274732,90.32802145,132.84,132.81,13.99802082]
[1744888275231,90.32802145,132.84,132.81,0.063]
[1744888275435,90.32802145,132.84,132.81,13.99802082]
[1744888276646,82.8,132.86,132.82,13.93502082]
[1744888276827,82.8,132.86,132.83,13.93502082]
[1744888277156,90.3267873,132.86,132.82,13.93502082]
[1744888277341,104.26180812,132.86,132.82,13.93502082]
[1744888277530,104.26180812,132.86,132.81,13.99802082]
[1744888277725,13.93502082,132.84,132.81,0.063]
[1744888277923,82.8,132.83,132.81,0.063]
[1744888278356,7.52898659,132.82,132.81,0.063]
[1744888279036,21.46400741,132.82,132.81,0.063]
[1744888281559,46.53505627,132.82,132.81,1e-08]
[1744888281730,69.30540741,132.82,132.81,1e-08]
[1744888281929,87.95505627,132.82,132.81,1e-08]
[1744888282340,96.33996608,132.82,132.81,1e-08]
[1744888284758,18.64964886,132.81,132.75,0.063]
[1744888284974,32.58466968,132.78,132.75,0.063]
[1744888285462,13.93502082,132.77,132.75,0.063]
[1744888286744,7.53238927,132.76,132.75,0.063]
[1744888288470,82.8,132.79,132.75,13.99802082]
[1744888288649,7.5312547,132.78,132.75,0.063]
[1744888289361,32.58466968,132.77,132.75,0.063]
[1744888289542,26.35939146,132.78,132.75,0.063]
[1744888289742,40.29441228,132.78,132.75,0.063]
[1744888292265,32.58466968,132.76,132.75,0.063]
[1744888292467,18.64964886,132.76,132.75,0.063]
[1744888293263,32.58466968,132.76,132.75,0.063]
[1744888294082,40.11705895,132.76,132.75,0.063]
[1744888294250,101.44964886,132.75,132.71,2.5949471]
[1744888294598,18.64964886,132.72,132.71,2.5949471]
[1744888294945,32.58466968,132.72,132.71,2.5949471]
[1744888295569,13.93502082,132.72,132.71,2.5949471]
[1744888296173,21.46968025,132.72,132.71,2.5949471]
[1744888296773,40.11932911,132.72,132.71,2.5949471]
[1744888297859,40.40365225,132.72,132.71,2.5949471]
[1744888298050,40.11932911,132.72,132.71,2.5949471]
[1744888299991,18.64964886,132.71,132.67,0.063]
[1744888300290,7.53636295,132.69,132.67,0.063]
[1744888302295,21.47138377,132.69,132.67,0.063]
[1744888303392,7.53636295,132.69,132.67,0.063]
[1744888303686,7.53636295,132.69,132.67,13.99802082]
[1744888304185,7.53579502,132.7,132.67,13.99802082]
[1744888304363,7.53579502,132.7,132.67,0.063]
[1744888304687,21.47081584,132.7,132.67,0.063]
[1744888305262,40.3103034,132.7,132.67,0.063]
[1744888305467,13.93502082,132.69,132.67,0.063]
[1744888305667,32.58466968,132.68,132.67,0.063]
[1744888306175,40.12160064,132.68,132.67,0.063]
[1744888307164,90.33660137,132.69,132.67,0.063]
[1744888307496,90.33660137,132.69,132.67,13.99802082]
[1744888307792,90.33660137,132.69,132.67,0.063]
[1744888308474,90.33657969,132.69,132.67,0.063]
[1744888310097,104.27160051,132.69,132.67,0.063]
[1744888311495,13.93502082,132.68,132.67,0.063]
[1744888313193,21.47195178,132.68,132.67,0.063]
[1744888313385,7.53693096,132.68,132.67,0.063]
[1744888316875,21.47195178,132.68,132.67,0.063]
[1744888317072,7.53693096,132.68,132.67,0.063]
[1744888317300,82.8,132.69,132.67,0.063]
[1744888317478,82.8,132.69,132.67,13.99802082]
[1744888318205,82.8,132.69,132.67,0.063]
[1744888318379,90.33641867,132.69,132.67,0.063]
[1744888320105,7.53522718,132.71,132.67,0.063]
[1744888320303,13.93502082,132.69,132.67,0.063]
[1744888320691,82.8,132.69,132.67,0.063]
[1744888321095,7.5360688,132.7,132.67,0.063]
[1744888321301,7.5360688,132.7,132.68,8.95364178]
[1744888322203,7.53522718,132.71,132.68,8.95364178]
[1744888322706,106.21479098,132.72,132.68,16.49049514]
[1744888322895,90.33479098,132.72,132.69,8.95364178]
[1744888323403,104.32249514,132.72,132.68,13.98770416]
[1744888324004,104.32249514,132.72,132.67,0.063]
[1744888324185,104.32249514,132.72,132.67,14.05070416]
[1744888324587,13.98770416,132.71,132.67,14.05070416]
[1744888325211,90.33479098,132.72,132.68,13.98770416]